bitfinex-derivatives/quotes_SOLF0:USTF0_20260129
["timestamp","ask_amount","ask_price","bid_price","bid_amount"]
[1769644801802,3.56355514,125.38,125.25,9.92049531]
[1769644803204,3.56355514,125.38,125.26,9.92049531]
[1769644803703,3.56355514,125.38,125.25,20.0]
[1769644803704,3.56355514,125.38,125.27,9.92049531]
[1769644804405,3.56355514,125.38,125.3,111.891]
[1769644804703,3.56355514,125.38,125.31,111.8827]
[1769644804905,7.43040016,125.44,125.33,3.33499655]
[1769644805106,7.1856,125.44,125.36,7.1897]
[1769644805805,7.1856,125.44,125.35,3.33499655]
[1769644806399,120.7578752,125.45,125.33,3.33499655]
[1769644806594,5.74168425,125.44,125.33,3.33499655]
[1769644806794,5.74168425,125.44,125.34,7.1903]
[1769644807001,3.27862342,125.43,125.34,7.1903]
[1769644807406,3.27862342,125.42,125.35,7.1902]
[1769644807903,3.27862342,125.41,125.35,7.1902]
[1769644808300,3.27862342,125.41,125.36,7.1896]
[1769644809704,3.27862342,125.41,125.33,3.33499655]
[1769644810802,3.27862342,125.4,125.34,7.1908]
[1769644811702,3.27862342,125.39,125.31,3.33499655]
[1769644813203,3.27862342,125.38,125.29,3.33499655]
[1769644813406,3.27862342,125.38,125.29,254.05499655]
[1769644813706,3.27862342,125.37,125.32,7.192]
[1769644814898,3.27862342,125.37,125.33,7.1914]
[1769644815606,3.27862342,125.37,125.32,7.192]
[1769644829108,3.27862342,125.37,125.32,10.42696913]
[1769644830221,3.27862342,125.37,125.33,7.1914]
[1769644830511,3.27862342,125.37,125.32,3.23496913]
[1769644831214,3.27862342,125.37,125.32,10.42636913]
[1769644832716,3.27862342,125.37,125.33,7.1913]
[1769644833712,3.3122562,125.39,125.33,3.23496913]
[1769644833914,3.3122562,125.39,125.34,10.42566913]
[1769644834510,3.3122562,125.41,125.36,3.23496913]
[1769644836315,3.3122562,125.41,125.36,10.42456913]
[1769644836516,3.3122562,125.41,125.36,3.23496913]
[1769644836714,3.3122562,125.43,125.36,3.23496913]
[1769644836917,3.3122562,125.44,125.36,3.23496913]
[1769644837116,3.3122562,125.44,125.39,7.1879]
[1769644837815,3.3122562,125.44,125.39,10.42286913]
[1769644843326,3.3122562,125.44,125.39,3.23496913]
[1769644843917,3.3122562,125.44,125.39,10.42236913]
[1769644844219,3.3122562,125.48,125.4,3.23496913]
[1769644844419,3.3122562,125.5,125.42,3.23496913]
[1769644844818,3.3122562,125.5,125.43,3.23496913]
[1769644845314,10.4942562,125.5,125.43,7.1856]
[1769644845617,3.3122562,125.49,125.43,7.1856]
[1769644847822,3.3122562,125.49,125.42,3.23496913]
[1769644848923,3.3122562,125.48,125.42,10.42116913]
[1769644849229,3.3122562,125.48,125.4,3.23496913]
[1769644850417,3.3122562,125.47,125.4,10.42186913]
[1769644851033,3.3122562,125.46,125.39,7.1879]
[1769644851826,3.3122562,125.46,125.4,7.1874]
[1769644853343,3.3122562,125.45,125.39,3.23496913]
[1769644854026,3.3122562,125.45,125.39,10.42286913]
[1769644854222,3.3122562,125.45,125.39,7.1879]
[1769644856535,3.3122562,125.45,125.39,10.69629164]
[1769644860946,3.3122562,125.45,125.37,259.26]
[1769644860947,3.53615533,125.44,125.37,10.69699164]
[1769644861637,3.53615533,125.43,125.36,7.1897]
[1769644862039,3.53615533,125.43,125.35,3.50839164]
[1769644862242,3.53615533,125.43,125.33,3.50839164]
[1769644863441,3.53615533,125.4,125.34,7.1904]
[1769644865741,3.53615533,125.4,125.35,7.1902]
[1769644866145,3.53615533,125.4,125.34,10.69919164]
[1769644866746,3.53615533,125.4,125.34,3.50839164]
[1769644866948,10.72355533,125.4,125.34,3.50839164]
[1769644867546,3.53615533,125.4,125.34,3.50839164]
[1769644868746,10.72355533,125.4,125.34,3.50839164]
[1769644869443,3.53615533,125.44,125.35,3.50839164]
[1769644870843,3.53615533,125.44,125.38,3.50839164]
[1769644871846,3.53615533,125.43,125.36,268.84839164]
[1769644872651,10.72195533,125.43,125.36,268.84839164]
[1769644872845,10.72195533,125.43,125.36,276.03789164]
[1769644873649,3.53615533,125.41,125.34,269.54839164]
[1769644874349,3.53615533,125.43,125.35,3.50839164]
[1769644876349,3.53615533,125.43,125.37,7.1885]
[1769644876851,3.53615533,125.43,125.36,3.50839164]
[1769644877050,3.53615533,125.46,125.38,3.50839164]
[1769644878452,3.53615533,125.45,125.39,7.1874]
[1769644881253,10.72085533,125.45,125.39,7.1874]
[1769644881457,3.53615533,125.44,125.38,3.50839164]
[1769644881958,10.72145533,125.44,125.38,3.50839164]
[1769644882143,3.53615533,125.44,125.37,7.1887]
[1769644882548,3.53615533,125.42,125.37,7.1887]
[1769644882945,3.53615533,125.41,125.35,7.1902]
[1769644883150,3.53615533,125.41,125.34,3.50839164]
[1769644883960,10.72365533,125.4,125.34,3.50839164]
[1769644886558,3.53615533,125.4,125.34,10.69909164]
[1769644886749,3.37854271,125.42,125.35,3.23595679]
[1769644886949,3.37854271,125.44,125.35,3.23595679]
[1769644887552,7.1862,125.43,125.36,7.1896]
[1769644887747,3.37854271,125.44,125.36,10.42555679]
[1769644888348,7.1863,125.42,125.36,3.23595679]
[1769644888753,3.37854271,125.44,125.36,3.23595679]
[1769644889058,3.54928083,125.42,125.36,3.23595679]
[1769644889260,3.54928083,125.42,125.34,271.33204421]
[1769644889862,7.1869,125.41,125.34,278.52264421]
[1769644890058,3.54928083,125.41,125.34,271.33204421]
[1769644890262,3.54928083,125.41,125.35,3.39204421]
[1769644890656,10.73548083,125.43,125.36,10.58174421]
[1769644890963,3.54928083,125.43,125.36,3.39204421]
[1769644891362,3.54928083,125.43,125.37,7.189]
[1769644893367,10.73498083,125.43,125.37,7.189]
[1769644896461,3.54928083,125.43,125.38,7.1884]
[1769644896670,3.54928083,125.45,125.39,3.39204421]
[1769644897465,10.73388083,125.45,125.39,3.39204421]
[1769644897860,3.54928083,125.45,125.39,3.39204421]
[1769644899366,7.1851,125.44,125.39,3.39204421]
[1769644901667,10.73438083,125.44,125.39,3.39204421]
[1769644902369,3.54928083,125.44,125.39,3.39204421]
[1769644902965,3.54928083,125.44,125.39,10.57964421]
[1769644903664,10.73448083,125.44,125.39,3.39204421]
[1769644904567,10.73508083,125.43,125.37,10.58114421]
[1769644905074,3.54928083,125.43,125.37,10.58114421]
[1769644906068,3.54928083,125.41,125.36,7.1896]
[1769644908975,3.54928083,125.41,125.35,10.58224421]
[1769644909376,3.54928083,125.41,125.36,3.39204421]
[1769644910272,3.54928083,125.45,125.37,3.39204421]
[1769644910579,3.54928083,125.47,125.37,3.39204421]
[1769644910879,3.54928083,125.47,125.4,3.39204421]
[1769644911068,7.1845,125.46,125.4,3.39204421]
[1769644911678,7.1847,125.45,125.4,3.39204421]
[1769644913481,7.184,125.46,125.4,3.39204421]
[1769644913882,3.54928083,125.47,125.41,3.39204421]
[1769644915182,3.27557228,125.49,125.42,3.41084365]
[1769644915776,3.27557228,125.49,125.42,10.59704365]
[1769644916476,7.1817,125.5,125.39,379.0711]
[1769644916477,10.70165227,125.51,125.44,3.41084365]
[1769644916677,3.27557228,125.51,125.44,3.41084365]
[1769644917284,3.27557228,125.51,125.45,3.41084365]
[1769644917882,10.45667228,125.51,125.45,3.41084365]
[1769644920281,7.1804,125.53,125.46,3.41084365]
[1769644920484,10.45597228,125.53,125.46,3.41084365]
[1769644920683,3.27557228,125.55,125.46,3.41084365]
[1769644921294,3.27557228,125.54,125.46,3.41084365]
[1769644921778,3.27557228,125.52,125.46,3.41084365]
[1769644922191,3.27557228,125.51,125.44,3.41084365]
[1769644922788,7.1817,125.5,125.44,3.41084365]
[1769644923190,10.45727228,125.5,125.44,3.41084365]
[1769644925490,10.45787228,125.49,125.41,10.59714365]
[1769644925698,3.27557228,125.48,125.41,10.59714365]
[1769644927295,10.45837228,125.48,125.41,10.59714365]
[1769644930097,10.45837228,125.48,125.42,3.41084365]
[1769644932699,10.45837228,125.48,125.42,10.59684365]
[1769644933099,10.45837228,125.48,125.42,3.41084365]
[1769644937206,10.45897228,125.47,125.41,278.1267]
[1769644937412,3.27557228,125.46,125.41,278.1267]
[1769644937807,3.27557228,125.46,125.41,281.53754365]
[1769644938108,3.27557228,125.46,125.41,10.59754365]
[1769644938710,10.45847228,125.48,125.42,7.1862]
[1769644942014,3.27557228,125.51,125.43,3.41084365]
[1769644942709,3.27557228,125.49,125.43,3.41084365]
[1769644943313,3.27557228,125.48,125.41,3.41084365]
[1769644945215,5.89618444,125.5,125.41,3.41084365]
[1769644945216,3.44606389,125.47,125.41,3.41084365]
[1769644945814,10.62996389,125.47,125.41,3.41084365]
[1769644946014,3.44606389,125.47,125.41,3.41084365]
[1769644947410,7.184,125.46,125.41,3.41084365]
[1769644950218,7.1846,125.45,125.41,3.41084365]
[1769644951313,7.1846,125.45,125.39,7.1879]
[1769644951314,10.52427802,125.44,125.39,3.20702579]
[1769644952113,10.52477802,125.43,125.37,280.82702579]
[1769644953420,3.33907802,125.41,125.35,3.20702579]
[1769644956115,3.33907802,125.41,125.35,10.39722579]
[1769644956623,3.33907802,125.41,125.35,3.20702579]
[1769644956821,3.33907802,125.41,125.36,7.1897]
[1769644958822,3.33907802,125.41,125.36,10.39672579]
[1769644959716,10.52497802,125.43,125.37,3.20702579]
[1769644959925,3.33907802,125.45,125.38,3.20702579]
[1769644960625,3.33907802,125.45,125.36,111.8378]
[1769644960626,3.33907802,125.45,125.39,10.39472579]
[1769644962922,3.33907802,125.45,125.39,7.1877]
[1769644964227,3.33907802,125.44,125.38,7.1885]
[1769644965431,3.33907802,125.43,125.37,3.20702579]
[1769644966428,3.33907802,125.43,125.37,10.39612579]
[1769644967218,3.33907802,125.42,125.35,10.39672579]
[1769644967423,3.33907802,125.42,125.35,3.20702579]
[1769644968431,3.33907802,125.42,125.36,7.1897]
[1769644972035,10.52537802,125.42,125.36,7.1897]
[1769644972239,3.33907802,125.41,125.35,3.20702579]
[1769644972732,3.33907802,125.41,125.35,10.39722579]
[1769644972936,3.33907802,125.41,125.35,3.20702579]
[1769644973235,3.33907802,125.41,125.34,278.34]
[1769644973533,10.52657802,125.4,125.34,285.5303]
[1769644974727,10.52657802,125.4,125.34,288.73732579]
[1769644974936,10.52657802,125.4,125.34,10.39732579]
[1769644975332,3.20669636,125.38,125.33,7.1914]
[1769644976235,3.20669636,125.37,125.29,111.8948]
[1769644976434,3.20669636,125.37,125.3,3.2620336]
[1769644977229,3.20669636,125.36,125.31,7.1925]
[1769644977734,3.20669636,125.36,125.3,3.2620336]
[1769644978131,3.20669636,125.35,125.3,3.2620336]
[1769644979735,10.39719636,125.35,125.28,287.1620336]
[1769644979931,3.20669636,125.35,125.28,283.9]
[1769644980127,3.20669636,125.35,125.26,10.4569336]
[1769644980338,3.20669636,125.35,125.27,3.2620336]
[1769644981242,7.1914,125.33,125.27,3.2620336]
[1769644981434,3.20669636,125.32,125.27,3.2620336]
[1769644985330,3.20669636,125.36,125.28,3.2620336]
[1769644986338,3.20669636,125.36,125.29,10.4557336]
[1769644987842,3.20669636,125.36,125.3,7.1929]
[1769644988045,3.20669636,125.36,125.3,10.4549336]
[1769644988947,10.39529636,125.38,125.31,3.2620336]
[1769644989141,3.20669636,125.38,125.31,3.2620336]
[1769644990449,3.20669636,125.38,125.33,7.1908]
[1769644994852,7.1881,125.39,125.33,10.4528336]
[1769644995153,10.39479636,125.39,125.33,10.4528336]
[1769644996652,3.20669636,125.39,125.33,10.4528336]
[1769644996853,7.1874,125.4,125.35,3.2620336]
[1769644997051,3.20669636,125.41,125.35,3.2620336]
[1769644997255,111.7775,125.44,125.3,398.5302]
[1769644997256,3.20669636,125.43,125.37,3.2620336]
[1769644999442,7.1869,125.41,125.37,3.2620336]
[1769644999642,7.1869,125.41,125.35,7.1902]
[1769644999643,10.39359636,125.41,125.35,10.4522336]
[1769645000047,10.39359636,125.41,125.35,3.2620336]
[1769645000646,3.20669636,125.4,125.33,3.2620336]
[1769645000848,3.20669636,125.4,125.29,3.2620336]
[1769645001354,7.1892,125.37,125.31,3.2620336]
[1769645002356,10.39589636,125.37,125.31,3.2620336]
[1769645002761,3.20669636,125.37,125.31,3.2620336]
[1769645003258,10.39469636,125.39,125.32,3.2620336]
[1769645005457,10.39469636,125.39,125.33,3.28924207]
[1769645005759,10.72595331,125.41,125.33,3.28924207]
[1769645006559,10.72595331,125.41,125.34,10.47994207]
[1769645006762,10.72595331,125.41,125.35,3.28924207]
[1769645007664,10.72595331,125.41,125.35,10.47944207]
[1769645008861,10.72595331,125.41,125.35,3.28924207]
[1769645009064,10.58580416,125.4,125.34,7.1908]
[1769645009256,3.39820416,125.39,125.33,3.34202883]
[1769645010455,10.58640416,125.39,125.33,3.34202883]
[1769645011159,3.39820416,125.38,125.33,3.34202883]
[1769645013860,7.1882,125.39,125.33,3.34202883]
[1769645014064,3.39820416,125.4,125.33,10.53332883]
[1769645014564,10.58620416,125.39,125.33,3.34202883]
[1769645015163,10.58680416,125.38,125.33,3.34202883]
[1769645015358,3.39820416,125.37,125.3,3.34202883]
[1769645016460,3.39820416,125.37,125.31,10.53402883]
[1769645017766,10.58760416,125.37,125.31,10.53402883]
[1769645018765,3.39820416,125.35,125.29,10.53522883]
[1769645019166,3.39820416,125.35,125.29,3.34202883]
[1769645020469,10.58850416,125.35,125.29,3.34202883]
[1769645022468,10.58900416,125.34,125.28,288.04]
[1769645022670,3.39820416,125.33,125.27,10.53682883]
[1769645024374,10.58970416,125.33,125.27,10.53682883]
[1769645025074,3.39820416,125.33,125.27,10.53682883]
[1769645026977,10.58960416,125.33,125.27,3.34202883]
[1769645027164,3.39820416,125.32,125.27,3.34202883]
[1769645033003,10.59040416,125.32,125.27,3.34202883]
[1769645033290,3.39820416,125.31,125.25,3.34202883]
[1769645033482,3.39820416,125.31,125.25,10.53792883]
[1769645034493,119.28068957,125.35,125.25,3.34202883]
[1769645034494,3.39820416,125.3,125.25,3.34202883]
[1769645034794,3.39820416,125.3,125.24,287.14]
[1769645034987,3.39820416,125.3,125.24,297.64654142]
[1769645035589,3.39820416,125.3,125.25,10.50584142]
[1769645038801,3.30995191,125.29,125.24,294.3365]
[1769645039997,3.30995191,125.29,125.24,7.1965]
[1769645040401,3.30995191,125.28,125.23,3.31004142]
[1769645040586,3.30995191,125.28,125.22,7.1975]
[1769645040792,3.30995191,125.28,125.21,3.31004142]
[1769645041494,10.50485191,125.27,125.21,10.50824142]
[1769645041801,3.30995191,125.26,125.21,3.31004142]
[1769645043299,3.30995191,125.25,125.19,3.31004142]
[1769645043498,3.30995191,125.25,125.16,3.31004142]
[1769645044201,3.30995191,125.23,125.16,3.31004142]
[1769645044599,3.30995191,125.23,125.14,303.42421662]
[1769645044802,111.9499,125.24,125.14,303.42421662]
[1769645044803,3.30995191,125.2,125.14,303.42421662]
[1769645046404,10.50905191,125.2,125.14,303.42421662]
[1769645046601,3.30995191,125.2,125.14,303.42421662]
[1769645049802,10.50895191,125.2,125.14,303.42421662]
[1769645051900,3.30995191,125.2,125.14,8.9941752]
[1769645053208,3.30995191,125.17,125.11,3.31004142]
[1769645053703,10.51055191,125.17,125.11,3.31004142]
[1769645055607,7.1998,125.19,125.12,3.31004142]
[1769645055911,10.50975191,125.19,125.12,3.31004142]
[1769645056705,7.2,125.18,125.12,3.31004142]
[1769645058211,3.30995191,125.19,125.13,3.31004142]
[1769645058406,3.30995191,125.21,125.13,3.31004142]
[1769645058709,7.199,125.2,125.14,3.31004142]
[1769645060009,10.50895191,125.2,125.14,3.31004142]
[1769645061707,3.30995191,125.19,125.14,3.31004142]
[1769645061910,10.50895191,125.2,125.14,3.31004142]
[1769645063709,3.30995191,125.2,125.14,10.51214142]
[1769645063915,111.954,125.24,125.15,3.31004142]
[1769645063916,7.1983,125.21,125.15,3.31004142]
[1769645064304,10.50825191,125.21,125.15,3.31004142]
[1769645065114,3.52672737,125.2,125.15,3.31004142]
[1769645065411,3.52672737,125.2,125.12,3.24724909]
[1769645065914,7.2,125.19,125.12,3.24724909]
[1769645066211,3.52672737,125.19,125.12,3.24724909]
[1769645066614,7.2005,125.18,125.12,3.24724909]
[1769645066915,7.2005,125.18,125.13,1.9639669]
[1769645068318,10.72722737,125.18,125.13,1.9639669]
[1769645069420,7.2007,125.17,125.12,5.21121599]
[1769645069719,10.54071809,125.17,125.12,5.21121599]
[1769645070716,10.54071809,125.17,125.12,1.9639669]
[1769645070929,3.34001809,125.16,125.11,1.9639669]
[1769645071920,3.34001809,125.16,125.12,1.9639669]
[1769645073718,3.34001809,125.16,125.11,1.9639669]
[1769645074116,3.34001809,125.16,125.1,3.48545236]
[1769645074117,10.54171809,125.15,125.09,1.9639669]
[1769645075019,7.2017,125.15,125.09,1.9639669]
[1769645075224,3.34001809,125.14,125.09,1.9639669]
[1769645075418,3.34001809,125.13,125.09,1.9639669]
[1769645075615,3.34001809,125.13,125.08,302.22941926]
[1769645076927,10.54291809,125.13,125.08,302.22941926]
[1769645077223,10.54291809,125.13,125.08,296.78]
[1769645077919,10.54371809,125.12,125.06,5.44941926]
[1769645078828,10.54371809,125.12,125.07,1.9639669]
[1769645080126,12.50768499,125.12,125.06,5.44941926]
[1769645081228,3.34001809,125.11,125.06,5.44941926]
[1769645081423,12.50818499,125.11,125.04,12.65721926]
[1769645083023,5.30398499,125.11,125.05,10.69275236]
[1769645083229,3.34001809,125.11,125.05,12.65671926]
[1769645083726,5.30398499,125.13,125.07,3.48545236]
[1769645083927,5.30398499,125.13,125.07,5.44941926]
[1769645084430,3.34001809,125.12,125.07,5.44941926]
[1769645084835,3.34001809,125.12,125.08,1.9639669]
[1769645086230,3.34001809,125.12,125.07,10.69165236]
[1769645086529,3.34001809,125.12,125.08,1.9639669]
[1769645086724,3.34001809,125.12,125.08,9.1697669]
[1769645087035,3.34001809,125.14,125.09,5.44941926]
[1769645088132,3.34001809,125.14,125.09,12.65451926]
[1769645088425,3.34001809,125.16,125.11,1.9639669]
[1769645088831,10.54121809,125.16,125.11,1.9639669]
[1769645089028,3.34001809,125.15,125.11,1.9639669]
[1769645092730,3.34001809,125.17,125.12,1.9639669]
[1769645092932,3.34001809,125.17,125.11,5.44941926]
[1769645093137,3.34001809,125.16,125.1,1.9639669]
[1769645093834,3.34001809,125.13,125.08,1.9639669]
[1769645094232,10.54291809,125.13,125.09,1.9639669]
[1769645096137,7.2029,125.13,125.09,5.47361366]
[1769645096337,10.59478489,125.15,125.09,5.47361366]
[1769645097637,10.59478489,125.15,125.1,1.96506636]
[1769645098438,1.96506636,125.16,125.09,5.47471312]
[1769645098439,10.59498489,125.14,125.09,5.47471312]
[1769645098738,3.39258489,125.14,125.09,5.47471312]
[1769645100741,10.59498489,125.14,125.09,1.96506636]
[1769645101040,3.39258489,125.13,125.08,1.96506636]
[1769645101241,10.59548489,125.13,125.07,5.47471312]
[1769645101643,3.39258489,125.13,125.07,5.47471312]
[1769645101837,3.39258489,125.13,125.08,1.96506636]
[1769645102234,112.0131,125.17,125.09,1.96506636]
[1769645102235,3.39258489,125.15,125.09,1.96506636]
[1769645102644,3.39258489,125.15,125.09,9.17006636]
[1769645102845,7.2017,125.16,125.11,1.96506636]
[1769645103244,10.59428489,125.16,125.11,1.96506636]
[1769645103545,10.59428489,125.16,125.1,5.47471312]
[1769645104247,10.59328489,125.17,125.12,1.96506636]
[1769645104544,10.59328489,125.17,125.11,10.71334676]
[1769645104545,3.39258489,125.19,125.14,1.96506636]
[1769645105239,3.39258489,125.19,125.13,12.67751312]
[1769645105434,10.59208489,125.19,125.13,10.71244676]
[1769645105639,10.59208489,125.19,125.13,3.50964676]
[1769645105840,3.39258489,125.18,125.13,5.47471312]
[1769645106346,3.39258489,125.18,125.13,1.96506636]
[1769645106551,3.39258489,125.18,125.14,1.96506636]
[1769645106736,3.39258489,125.18,125.13,9.16796636]
[1769645108348,3.39258489,125.18,125.13,1.96506636]
[1769645109949,3.39258489,125.18,125.13,9.16796636]
[1769645110344,10.59258489,125.18,125.13,1.96506636]
[1769645110737,12.55765125,125.18,125.12,5.47471312]
[1769645111137,10.59258489,125.18,125.12,5.47471312]
[1769645111643,3.39258489,125.18,125.12,5.47471312]
[1769645111848,3.39258489,125.18,125.13,3.50964676]
[1769645112751,10.59268489,125.18,125.13,3.50964676]
[1769645113052,10.59268489,125.18,125.12,5.47471312]
[1769645113247,5.35765125,125.17,125.11,1.96506636]
[1769645113640,3.39258489,125.15,125.1,3.50964676]
[1769645113943,5.35765125,125.15,125.09,9.16976636]
[1769645114250,3.39258489,125.14,125.08,5.47471312]
[1769645115351,3.39258489,125.14,125.08,12.68041312]
[1769645116450,3.39258489,125.14,125.09,3.50964676]
[1769645116955,5.35765125,125.16,125.09,3.50964676]
[1769645117149,5.35765125,125.16,125.11,3.50964676]
[1769645117150,3.39258489,125.16,125.11,3.50964676]
[1769645117350,3.39258489,125.18,125.12,5.47471312]
[1769645117561,3.39258489,125.18,125.13,1.96506636]
[1769645118452,5.35765125,125.21,125.14,1.96506636]
[1769645118960,3.39258489,125.2,125.14,1.96506636]
[1769645119265,3.39258489,125.2,125.15,1.96506636]
[1769645119856,1.96506636,125.22,125.12,112.0491]
[1769645119857,3.39258489,125.22,125.16,5.47471312]
[1769645120362,5.35765125,125.24,125.17,12.67511312]
[1769645120567,3.39258489,125.23,125.17,12.67511312]
[1769645122166,3.39258489,125.23,125.18,7.1999]
[1769645122370,3.39258489,125.27,125.2,3.50964676]
[1769645122562,5.35765125,125.27,125.2,5.47471312]
[1769645123460,12.55265125,125.27,125.2,12.67351312]
[1769645124361,3.39258489,125.26,125.2,12.67351312]
[1769645124566,12.55315125,125.26,125.2,5.47471312]
[1769645124765,12.55315125,125.26,125.2,3.50964676]
[1769645124967,5.45753875,125.25,125.19,1.96506636]
[1769645125271,5.45753875,125.25,125.18,12.6108091]
[1769645125662,5.45753875,125.24,125.18,3.44624274]
[1769645125965,1.96506636,125.23,125.18,3.44624274]
[1769645126167,5.45753875,125.23,125.16,5.4113091]
[1769645126370,12.65473875,125.23,125.16,5.4113091]
[1769645126568,111.9329,125.26,125.16,3.44624274]
[1769645126569,5.45753875,125.22,125.16,3.44624274]
[1769645127770,1.96506636,125.21,125.16,3.44624274]
[1769645129369,9.16336636,125.21,125.16,3.44624274]
[1769645129868,1.96506636,125.21,125.16,3.44624274]
[1769645130369,5.45753875,125.22,125.16,3.44624274]
[1769645131370,1.96506636,125.21,125.16,3.44624274]
[1769645131671,5.25184995,125.21,125.16,3.44624274]
[1769645132264,5.25184995,125.2,125.13,3.40210697]
[1769645132463,1.96506636,125.19,125.13,5.36717333]
[1769645132865,5.25184995,125.18,125.12,7.203]
[1769645133065,5.25184995,125.18,125.12,10.60510697]
[1769645134473,1.96506636,125.17,125.12,3.40210697]
[1769645134673,1.96506636,125.16,125.1,297.04210697]
[1769645135170,1.96506636,125.16,125.1,304.24670697]
[1769645135369,1.96506636,125.15,125.1,304.24670697]
[1769645135568,5.25184995,125.16,125.1,304.24670697]
[1769645137572,9.16576636,125.17,125.11,3.40210697]
[1769645137869,1.96506636,125.18,125.12,3.40210697]
[1769645138073,1.96506636,125.17,125.12,3.40210697]
[1769645139674,1.96506636,125.17,125.12,10.60550697]
[1769645140673,1.96506636,125.16,125.12,3.40210697]
[1769645141669,1.96506636,125.16,125.11,7.204]
[1769645142779,1.96506636,125.15,125.1,297.04210697]
[1769645143274,1.96506636,125.14,125.1,297.04210697]
[1769645143576,1.96506636,125.14,125.08,3.40210697]
[1769645144279,1.96506636,125.14,125.08,10.60790697]
[1769645145168,9.16686636,125.15,125.09,3.40210697]
[1769645145378,1.96506636,125.14,125.09,3.40210697]
[1769645145577,9.16626636,125.16,125.1,3.40210697]
[1769645146276,7.2012,125.16,125.1,3.40210697]
[1769645146478,7.2012,125.16,125.1,5.36717333]
[1769645147277,7.2012,125.16,125.11,3.40210697]
[1769645148075,3.28678359,125.17,125.11,5.36717333]
[1769645148378,9.16546636,125.18,125.12,5.36717333]
[1769645148579,9.16546636,125.18,125.12,3.40210697]
[1769645149377,3.28678359,125.15,125.07,3.40210697]
[1769645149578,1.96506636,125.12,125.07,3.40210697]
[1769645150178,10.49018359,125.13,125.07,3.40210697]
[1769645150477,1.96506636,125.14,125.07,5.36717333]
[1769645151078,3.28678359,125.15,125.07,3.40210697]
[1769645151079,1.96506636,125.13,125.07,3.40210697]
[1769645151576,1.96506636,125.12,125.07,3.40210697]
[1769645152082,5.25184995,125.14,125.07,12.57347333]
[1769645154585,5.25184995,125.14,125.08,10.60780697]
[1769645154787,1.96506636,125.15,125.09,3.40210697]
[1769645154984,5.25184995,125.16,125.09,5.36717333]
[1769645155180,3.28678359,125.16,125.1,12.41782178]
[1769645157377,3.45441064,125.2,125.14,3.24825542]
[1769645157682,3.45441064,125.2,125.14,5.21166283]
[1769645158090,12.61551805,125.22,125.15,12.41336283]
[1769645158581,7.1984,125.21,125.15,12.41336283]
[1769645158786,5.41781805,125.22,125.15,12.41336283]
[1769645159490,5.41781805,125.22,125.16,1.96340741]
[1769645160390,12.61551805,125.22,125.16,1.96340741]
[1769645161690,3.45441064,125.21,125.16,1.96340741]
[1769645162296,10.65281064,125.21,125.16,1.96340741]
[1769645162488,10.65281064,125.21,125.15,5.21166283]
[1769645163086,9.16090741,125.23,125.16,12.41276283]
[1769645163390,10.65191064,125.23,125.17,1.96340741]
[1769645163590,10.65221064,125.22,125.17,1.96340741]
[1769645163790,10.65221064,125.22,125.16,5.21166283]
[1769645164794,3.45441064,125.21,125.16,1.96340741]
[1769645165194,7.1978,125.22,125.16,1.96340741]
[1769645165791,7.1983,125.21,125.16,1.96340741]
[1769645167191,10.65271064,125.21,125.15,3.24825542]
[1769645167397,7.1989,125.2,125.15,1.96340741]
[1769645167790,10.65331064,125.2,125.14,5.21166283]
[1769645168394,7.1995,125.19,125.14,5.21166283]
[1769645168594,7.1995,125.19,125.14,1.96340741]
[1769645168996,12.61731805,125.19,125.13,1.96340741]
[1769645169496,3.45441064,125.17,125.11,319.04340741]
[1769645169704,3.45441064,125.17,125.11,1.96340741]
[1769645170704,7.2012,125.16,125.11,1.96340741]
[1769645171201,10.65561064,125.16,125.1,3.24825542]
[1769645171402,10.65561064,125.16,125.1,5.21166283]
[1769645171598,10.65561064,125.16,125.1,12.41626283]
[1769645171801,3.45441064,125.16,125.11,1.96340741]
[1769645172197,3.45441064,125.16,125.11,9.16730741]
[1769645172403,3.45441064,125.18,125.12,1.96340741]
[1769645173304,10.65441064,125.18,125.12,1.96340741]
[1769645173703,3.45441064,125.18,125.12,5.21166283]
[1769645173904,3.45441064,125.18,125.13,1.96340741]
[1769645174102,3.45441064,125.18,125.12,12.41506283]
[1769645174706,5.41781805,125.18,125.12,10.45165542]
[1769645174909,12.61781805,125.18,125.12,3.24825542]
[1769645177309,12.61781805,125.18,125.12,10.45165542]
[1769645179311,5.41781805,125.18,125.12,10.45165542]
[1769645180311,1.96340741,125.18,125.13,3.24825542]
[1769645180705,7.1995,125.19,125.13,10.45115542]
[1769645180911,5.41781805,125.2,125.13,12.41456283]
[1769645181308,5.41781805,125.2,125.14,10.45035542]
[1769645181612,5.41781805,125.2,125.15,3.24825542]
[1769645181613,3.45441064,125.2,125.15,3.24825542]
[1769645181810,183.6,125.23,125.16,5.21166283]
[1769645181811,5.41781805,125.23,125.16,5.21166283]
[1769645182018,12.61501805,125.23,125.17,1.96340741]
[1769645182619,12.61501805,125.23,125.16,12.41236283]
[1769645182923,5.41781805,125.2,125.14,3.24825542]
[1769645183918,5.41781805,125.19,125.13,7.2029]
[1769645184916,5.21129727,125.18,125.12,10.45175542]